bitfinex/quotes_BTCUSD_20250718
["timestamp","ask_amount","ask_price","bid_price","bid_amount"]
[1752829842811,0.06735,118830.0,118820.0,1.08504979]
[1752829843022,0.0044,118830.0,118820.0,1.13446381]
[1752829843682,0.13736,118830.0,118820.0,1.13446381]
[1752829843902,0.0044,118830.0,118820.0,1.13767381]
[1752829844159,0.13732,118830.0,118820.0,1.13767381]
[1752829844837,0.0044,118830.0,118820.0,1.13767381]
[1752829845056,0.13732,118830.0,118820.0,1.16997381]
[1752829845485,0.13732,118830.0,118820.0,1.20207381]
[1752829846371,0.0044,118830.0,118820.0,1.20207381]
[1752829846593,0.13732,118830.0,118820.0,1.20207381]
[1752829847243,0.0034,118830.0,118820.0,1.20207381]
[1752829847488,1e-08,118830.0,118820.0,1.20207381]
[1752829847697,1e-08,118830.0,118820.0,1.20407381]
[1752829848411,0.13352001,118840.0,118830.0,0.69006322]
[1752829848643,0.13367023,118840.0,118830.0,0.86133312]
[1752829849549,0.13367023,118840.0,118830.0,1.32534339]
[1752829849775,0.22937889,118850.0,118840.0,0.53353666]
[1752829849985,0.22937889,118850.0,118840.0,1.6274815]
[1752829850187,0.13638,118850.0,118840.0,1.6274815]
[1752829850626,0.13638,118850.0,118840.0,1.6527385]
[1752829850832,0.00346,118850.0,118840.0,1.6527385]
[1752829851072,0.13634,118850.0,118840.0,1.6857385]
[1752829851485,0.13734,118850.0,118840.0,1.6857385]
[1752829852137,0.00446,118850.0,118840.0,1.6857385]
[1752829852829,0.00346,118850.0,118840.0,1.6217385]
[1752829853037,0.00346,118850.0,118840.0,1.10831421]
[1752829853256,0.06716,118850.0,118840.0,1.10831421]
[1752829853461,0.06716,118850.0,118840.0,1.11031421]
[1752829853886,0.06716,118850.0,118840.0,1.10831421]
[1752829854137,0.06716,118850.0,118840.0,0.64630394]
[1752829854366,0.06716,118850.0,118840.0,1.19607383]
[1752829854568,0.06716,118850.0,118840.0,1.19507383]
[1752829855010,0.00346,118850.0,118840.0,1.19707383]
[1752829855868,0.13634,118850.0,118840.0,1.19707383]
[1752829856077,0.00346,118850.0,118840.0,0.73306356]
[1752829856295,0.13634,118850.0,118840.0,1.19707383]
[1752829858094,0.16914,118850.0,118840.0,1.19707383]
[1752829858519,0.13634,118850.0,118840.0,1.19707383]
[1752829860604,0.13634,118850.0,118840.0,1.6610841]
[1752829860828,0.00346,118850.0,118840.0,1.6924841]
[1752829861042,0.1363,118850.0,118840.0,1.6924841]
[1752829861943,0.00346,118850.0,118840.0,1.6610841]
[1752829862164,0.00346,118850.0,118840.0,1.11131421]
[1752829862386,0.1363,118850.0,118840.0,1.11131421]
[1752829863269,0.1363,118850.0,118840.0,1.14431421]
[1752829863720,0.13825,118850.0,118840.0,1.57532448]
[1752829863971,0.1363,118850.0,118840.0,1.11635421]
[1752829864201,0.1363,118850.0,118840.0,1.19909383]
[1752829864429,0.17115,118850.0,118840.0,1.11333421]
[1752829864660,0.2056,118850.0,118840.0,1.11333421]
[1752829865106,0.17115,118850.0,118840.0,1.11333421]
[1752829865315,0.13825,118850.0,118840.0,1.19909383]
[1752829865544,0.1363,118850.0,118840.0,1.19909383]
[1752829868686,0.2043,118850.0,118840.0,1.19707383]
[1752829870450,0.2043,118850.0,118840.0,1.11131421]
[1752829870680,0.2127134,118850.0,118840.0,1.11131421]
[1752829870928,0.39782017,118850.0,118840.0,0.29047538]
[1752829871151,0.39782017,118850.0,118840.0,0.27363291]
[1752829871371,0.39782017,118850.0,118840.0,0.27163291]
[1752829871595,0.39782017,118850.0,118840.0,0.08551028]
[1752829871596,0.38099316,118850.0,118840.0,0.08551028]
[1752829871799,0.38099316,118850.0,118840.0,0.08651028]
[1752829872006,0.38099316,118850.0,118840.0,0.08551028]
[1752829872228,0.38099316,118850.0,118840.0,0.27063305]
[1752829872469,0.38199316,118850.0,118840.0,0.27904758]
[1752829872687,0.38199316,118850.0,118840.0,0.28746197]
[1752829872894,0.23054083,118850.0,118840.0,0.29587614]
[1752829874370,0.09770076,118850.0,118840.0,0.29587614]
[1752829874647,0.23891458,118850.0,118840.0,0.29587614]
[1752829874857,0.23050076,118850.0,118840.0,0.29587614]
[1752829875067,0.23891458,118850.0,118840.0,0.29587614]
[1752829875411,0.10611458,118850.0,118840.0,0.29587614]
[1752829875639,0.41556837,118850.0,118840.0,0.29587614]
[1752829875859,0.24728903,118850.0,118840.0,0.29587614]
[1752829876513,0.23887507,118850.0,118840.0,0.29587614]
[1752829876730,0.41556837,118850.0,118840.0,0.29587614]
[1752829876915,0.23887507,118850.0,118840.0,0.29587614]
[1752829877063,0.23046118,118850.0,118840.0,0.29587614]
[1752829877560,0.40715441,118850.0,118840.0,0.29587614]
[1752829877774,0.22204701,118850.0,118840.0,0.29587614]
[1752829877906,0.23046083,118850.0,118840.0,0.29587614]
[1752829878337,0.23046076,118850.0,118840.0,0.29587614]
[1752829878711,0.23887458,118850.0,118840.0,0.29587614]
[1752829879077,0.22204701,118850.0,118840.0,0.29587614]
[1752829879285,0.07246,118850.0,118840.0,0.75988641]
[1752829879491,0.20522,118850.0,118840.0,0.29587614]
[1752829880138,0.20522,118850.0,118840.0,0.75988641]
[1752829880567,0.00446,118850.0,118840.0,1.56893668]
[1752829880774,0.13722,118850.0,118840.0,1.19068603]
[1752829881005,0.14245,118850.0,118840.0,1.18766603]
[1752829881206,0.14245,118850.0,118840.0,1.09988641]
[1752829881207,0.20325,118850.0,118840.0,1.09988641]
[1752829881413,0.21166333,118850.0,118840.0,1.09988641]
[1752829881623,0.21066333,118850.0,118840.0,0.63587614]
[1752829881830,0.21066333,118850.0,118840.0,0.63687614]
[1752829881996,0.13622,118850.0,118840.0,1.10493641]
[1752829882210,0.13622,118850.0,118840.0,1.19166603]
[1752829882418,0.13622,118850.0,118840.0,1.13910641]
[1752829882993,0.00346,118850.0,118840.0,1.13910641]
[1752829883197,0.13622,118850.0,118840.0,1.10590641]
[1752829883323,0.13618,118850.0,118840.0,1.10590641]
[1752829883538,0.00346,118850.0,118840.0,1.7195763]
[1752829883753,0.13618,118850.0,118840.0,1.7195763]
[1752829883947,0.13618,118850.0,118840.0,1.25556603]
[1752829884192,0.13618,118850.0,118840.0,1.22406603]
[1752829884399,0.13618,118850.0,118840.0,0.76005576]
[1752829884610,0.13618,118850.0,118840.0,1.22406603]
[1752829885380,0.13618,118850.0,118840.0,0.76005576]
[1752829885584,0.13618,118850.0,118840.0,1.22406603]
[1752829885855,0.00346,118850.0,118840.0,1.22406603]
[1752829886290,0.13618,118850.0,118840.0,1.22406603]
[1752829887611,0.00346,118850.0,118840.0,1.22406603]
[1752829887816,0.13618,118850.0,118840.0,1.25626603]
[1752829888224,0.13618,118850.0,118840.0,1.22406603]
[1752829888754,0.00346,118850.0,118840.0,1.22406603]
[1752829888954,0.13618,118850.0,118840.0,1.25406603]
[1752829890028,0.13618,118850.0,118840.0,1.19166603]
[1752829891002,0.13618,118850.0,118840.0,1.7198763]
[1752829891003,0.13614,118850.0,118840.0,1.7198763]
[1752829891514,0.13814,118850.0,118840.0,0.72468576]
[1752829891713,0.13814,118850.0,118840.0,0.63687614]
[1752829891714,0.20397,118850.0,118840.0,0.63687614]
[1752829891925,0.22079715,118850.0,118840.0,0.29687614]
[1752829892129,0.4059042,118850.0,118840.0,0.28004758]
[1752829892361,0.4059042,118850.0,118840.0,0.29687608]
[1752829892564,0.23762472,118850.0,118840.0,0.29687537]
[1752829892769,0.23762472,118850.0,118840.0,0.63687537]
[1752829892972,0.24603861,118850.0,118840.0,0.63687537]
[1752829893187,0.23762472,118850.0,118840.0,0.29687537]
[1752829893556,0.2292109,118850.0,118840.0,0.29687537]
[1752829893816,0.41431802,118850.0,118840.0,0.6284612]
[1752829894012,0.40590455,118850.0,118840.0,0.62004695]
[1752829894217,0.22921125,118850.0,118840.0,0.6284612]
[1752829894432,0.23762514,118850.0,118840.0,0.6284612]
[1752829894678,0.22079715,118850.0,118840.0,0.63687537]
[1752829894899,0.22079708,118850.0,118840.0,0.72263499]
[1752829895102,0.21238347,118850.0,118840.0,0.72263499]
[1752829895678,0.22079701,118850.0,118840.0,0.72263499]
[1752829896056,0.20397,118850.0,118840.0,1.18664526]
[1752829896288,0.21238333,118850.0,118840.0,1.18664526]
[1752829896514,0.20397,118850.0,118840.0,1.18869526]
[1752829897194,0.00346,118850.0,118840.0,1.18869526]
[1752829897453,0.1361,118850.0,118840.0,1.19166526]
[1752829898104,0.1361,118850.0,118840.0,1.18869526]
[1752829898505,0.1361,118850.0,118840.0,1.19166526]
[1752829900331,0.1361,118850.0,118840.0,1.18869526]
[1752829901303,0.1361,118850.0,118840.0,1.19166526]
[1752829901517,0.1361,118850.0,118840.0,1.22486526]
[1752829902490,0.00346,118850.0,118840.0,1.22486526]
[1752829902692,0.1361,118850.0,118840.0,1.19166526]
[1752829902888,0.00346,118850.0,118840.0,1.19166526]
[1752829903109,0.1361,118850.0,118840.0,1.22246526]
[1752829903323,0.00346,118850.0,118840.0,1.71837553]
[1752829903529,0.1361,118850.0,118840.0,1.71837553]
[1752829904815,0.00346,118850.0,118840.0,1.71837553]
[1752829905069,0.00346,118850.0,118840.0,1.74406309]
[1752829907881,0.00346,118850.0,118840.0,1.75587509]
[1752829912466,0.00346,118850.0,118840.0,1.88847509]
[1752829912949,0.00346,118850.0,118840.0,0.96045455]
[1752829913162,0.00346,118850.0,118840.0,1.88847509]
[1752829918233,0.00346,118850.0,118840.0,1.36176482]
[1752829918442,0.06937,118850.0,118840.0,1.22619482]
[1752829918723,0.07231,118850.0,118840.0,1.22619482]
[1752829918938,0.06937,118850.0,118840.0,1.1404352]
[1752829919148,0.04081,118850.0,118840.0,0.33437493]
[1752829919382,0.22199687,118850.0,118840.0,0.30913247]
[1752829919606,0.40710371,118850.0,118840.0,0.64071801]
[1752829919841,0.39027705,118850.0,118840.0,0.11219784]
[1752829920065,0.39027705,118850.0,118840.0,0.12061251]
[1752829920272,0.39027705,118850.0,118840.0,0.28890601]
[1752829920495,0.39027691,118850.0,118840.0,0.30573472]
[1752829920781,0.39869087,118850.0,118840.0,0.64573472]
[1752829921424,0.39869087,118850.0,118840.0,0.65414889]
[1752829921645,0.22199757,118850.0,118840.0,0.65414889]
[1752829922094,0.21358347,118850.0,118840.0,1.11815916]
[1752829922323,0.20517,118850.0,118840.0,1.11815916]
[1752829922583,0.22199708,118850.0,118840.0,1.11815916]
[1752829922783,0.21358347,118850.0,118840.0,1.11815916]
[1752829922992,0.22199708,118850.0,118840.0,1.11815916]
[1752829923207,0.21358347,118850.0,118840.0,0.65414889]
[1752829923417,0.22199708,118850.0,118840.0,1.20391878]
[1752829923639,0.21358347,118850.0,118840.0,1.20391878]
[1752829923849,0.22199708,118850.0,118840.0,1.20391878]
[1752829924067,0.23041083,118850.0,118840.0,1.20391878]
[1752829924744,0.21358347,118850.0,118840.0,1.11815916]
[1752829924955,0.22199701,118850.0,118840.0,1.11815916]
[1752829925164,0.21358347,118850.0,118840.0,1.11815916]
[1752829925370,0.0810234,118850.0,118840.0,1.11815916]
[1752829925582,0.2135434,118850.0,118840.0,1.11815916]
[1752829925837,0.22195694,118850.0,118840.0,1.20391878]
[1752829926062,0.23037055,118850.0,118840.0,0.73990851]
[1752829926267,0.22195694,118850.0,118840.0,1.20391878]
[1752829926912,0.22195687,118850.0,118840.0,1.20596878]
[1752829927136,0.23037055,118850.0,118840.0,1.20596878]
[1752829927364,0.23037055,118850.0,118840.0,1.20391878]
[1752829927613,0.2387843,118850.0,118840.0,1.20391878]
[1752829927815,0.23037055,118850.0,118840.0,1.20391878]
[1752829928028,0.22195687,118850.0,118840.0,1.20391878]
[1752829929386,0.23037055,118850.0,118840.0,1.20391878]
[1752829929743,0.23878437,118850.0,118840.0,1.20391878]
[1752829929964,0.40706434,118850.0,118840.0,1.18709036]
[1752829930185,0.40706434,118850.0,118840.0,1.19550475]
[1752829930409,0.40706434,118850.0,118840.0,1.203919]
[1752829930844,0.23878493,118850.0,118840.0,1.203919]
[1752829931076,0.41547823,118850.0,118840.0,1.203919]
[1752829931508,0.24719889,118850.0,118840.0,1.21233317]
[1752829931709,0.23878493,118850.0,118840.0,1.21233317]
[1752829932152,0.23037104,118850.0,118840.0,1.21233317]
[1752829932407,0.22195722,118850.0,118840.0,1.21233317]
[1752829932855,0.23037055,118850.0,118840.0,1.21233317]
[1752829933074,0.22195687,118850.0,118840.0,1.21438317]
[1752829933292,0.23037055,118850.0,118840.0,1.21438317]
[1752829934183,0.23878437,118850.0,118840.0,1.21438317]
[1752829934406,0.23037055,118850.0,118840.0,1.21438317]
[1752829934630,0.23878437,118850.0,118840.0,1.21438317]
[1752829934857,0.23037055,118850.0,118840.0,1.21438317]
[1752829935489,0.23878437,118850.0,118840.0,1.21438317]
[1752829935709,0.23037055,118850.0,118840.0,1.21438317]
[1752829935930,0.22195687,118850.0,118840.0,1.21438317]
[1752829936233,0.22195694,118850.0,118840.0,1.21438317]
[1752829936461,0.23033027,118850.0,118840.0,1.21438317]
[1752829938366,0.39861038,118850.0,118840.0,1.10974534]
[1752829939364,0.39861038,118850.0,118840.0,1.11815966]
[1752829939774,0.39019684,118850.0,118840.0,1.10974534]
[1752829940161,0.39019684,118850.0,118840.0,1.11815973]
[1752829940538,0.39019684,118850.0,118840.0,1.12657363]
[1752829940744,0.39019684,118850.0,118840.0,1.11815938]
[1752829941851,0.39019684,118850.0,118840.0,1.10974506]
[1752829942282,0.39019684,118850.0,118840.0,1.10133067]
[1752829942500,0.17876347,118850.0,118840.0,1.20603885]
[1752829942737,0.14646347,118850.0,118840.0,1.20603885]
[1752829942964,0.13805,118850.0,118840.0,1.20603885]
[1752829943167,0.1788634,118850.0,118840.0,1.20603885]
[1752829943516,0.17045,118850.0,118840.0,1.20603885]
[1752829943939,0.17886333,118850.0,118840.0,1.20603885]
[1752829944538,0.04638333,118850.0,118840.0,1.20603885]
[1752829944740,0.17886333,118850.0,118840.0,1.20603885]
[1752829944917,0.1872768,118850.0,118840.0,1.20603885]
[1752829945143,0.04638333,118850.0,118840.0,1.20603885]
[1752829945348,0.17041,118850.0,118840.0,1.20603885]
[1752829945526,0.1872368,118850.0,118840.0,1.20603885]
[1752829945744,0.18723673,118850.0,118840.0,1.20603885]
[1752829945911,0.17882333,118850.0,118840.0,1.20603885]
[1752829946803,0.1872368,118850.0,118840.0,1.20603885]
[1752829947005,0.17882333,118850.0,118840.0,1.20603885]
[1752829947458,0.04638333,118850.0,118840.0,1.20603885]
[1752829947656,0.17882333,118850.0,118840.0,1.20603885]
[1752829947880,0.17041,118850.0,118840.0,0.74202858]
[1752829948076,0.04638333,118850.0,118840.0,1.20603885]
[1752829948241,0.17882333,118850.0,118840.0,1.20603885]
[1752829949496,0.17041,118850.0,118840.0,1.20603885]
[1752829949702,0.17882347,118850.0,118840.0,1.20603885]
[1752829949913,0.21092347,118850.0,118840.0,1.20603885]
[1752829950051,0.2109234,118850.0,118840.0,1.20603885]
[1752829950262,0.0784834,118850.0,118840.0,1.20603885]
[1752829950471,0.23086083,118850.0,118840.0,0.65414896]
[1752829950671,0.23086083,118850.0,118840.0,1.11815923]
[1752829950955,0.22244701,118850.0,118840.0,1.11815923]
[1752829951832,0.23086083,118850.0,118840.0,1.11815923]
[1752829952049,0.39914017,118850.0,118840.0,1.09291621]
[1752829952258,0.40755406,118850.0,118840.0,1.10974492]
[1752829952465,0.23927472,118850.0,118840.0,1.11815909]
[1752829952670,0.41596802,118850.0,118840.0,1.11815909]
[1752829953946,0.40755462,118850.0,118840.0,1.10133067]
[1752829954578,0.40755462,118850.0,118840.0,1.10974492]
[1752829955277,0.40755462,118850.0,118840.0,1.11815909]
[1752829955735,0.22244743,118850.0,118840.0,1.11815909]
[1752829955956,0.39914073,118850.0,118840.0,1.11815909]
[1752829956202,0.39914073,118850.0,118840.0,1.10974492]
[1752829956473,0.39914073,118850.0,118840.0,1.11815909]
[1752829956963,0.39914073,118850.0,118840.0,1.10974499]
[1752829957671,0.39914073,118850.0,118840.0,1.11815916]
[1752829958550,0.39914073,118850.0,118840.0,1.10974499]
[1752829958770,0.39914073,118850.0,118840.0,1.10133067]
[1752829959063,0.39072712,118850.0,118840.0,1.09291621]
[1752829959504,0.39072712,118850.0,118840.0,1.10974506]
[1752829960255,0.39072712,118850.0,118840.0,1.11815938]
[1752829962019,0.39072712,118850.0,118840.0,1.12657363]
[1752829964076,0.22244778,118850.0,118840.0,1.1265732]
[1752829964823,0.39072712,118850.0,118840.0,1.1265732]
[1752829965249,0.22244743,118850.0,118840.0,1.1265732]
[1752829965420,0.23086076,118850.0,118840.0,1.1286932]
[1752829965876,0.22244701,118850.0,118840.0,1.1286932]
[1752829966083,0.23086069,118850.0,118840.0,1.1286932]
[1752829966287,0.23927444,118850.0,118840.0,1.1286932]
[1752829966686,0.24768826,118850.0,118840.0,1.1286932]
[1752829966951,0.24768875,118850.0,118840.0,0.66468293]
[1752829967390,0.24768875,118850.0,118840.0,1.10300564]
[1752829967685,0.23927486,118850.0,118840.0,1.10300564]
[1752829967895,0.41596816,118850.0,118840.0,0.63899537]
[1752829968101,0.41596816,118850.0,118840.0,1.10088564]
[1752829968312,0.23927486,118850.0,118840.0,1.11088564]
[1752829968524,0.41596816,118850.0,118840.0,1.10247147]
[1752829968743,0.23927486,118850.0,118840.0,1.11088564]
[1752829968950,0.41596809,118850.0,118840.0,1.11088564]
[1752829969153,0.24768875,118850.0,118840.0,1.11088564]
[1752829969573,0.41596844,118850.0,118840.0,1.11088564]
[1752829969917,0.2476891,118850.0,118840.0,1.11088564]
[1752829970113,0.23927514,118850.0,118840.0,1.11088564]
[1752829970796,0.40755448,118850.0,118840.0,1.11088564]
[1752829971015,0.23927514,118850.0,118840.0,1.11088564]
[1752829971667,0.40755448,118850.0,118840.0,1.11088564]
[1752829971878,0.41596844,118850.0,118840.0,1.11088564]
[1752829972093,0.40755476,118850.0,118840.0,1.10247147]
[1752829972365,0.23086146,118850.0,118840.0,1.10247147]
[1752829972591,0.23086146,118850.0,118840.0,1.11088564]
[1752829972800,0.40755476,118850.0,118840.0,1.11088564]
[1752829973003,0.40755476,118850.0,118840.0,1.10247147]
[1752829973479,0.0004,118860.0,118850.0,0.59492038]
[1752829973697,0.0004,118860.0,118850.0,1.30339115]
[1752829974102,0.0004,118860.0,118850.0,1.31180215]
[1752829974384,0.0004,118860.0,118850.0,1.36121617]
[1752829974862,0.0004,118860.0,118850.0,1.42832745]
[1752829975287,0.0004,118860.0,118850.0,1.40686723]
[1752829976950,0.0004,118860.0,118850.0,1.40886723]
[1752829977260,1e-08,118860.0,118850.0,1.8728775]
[1752829977466,1e-08,118870.0,118860.0,0.53350409]
[1752829977677,1e-08,118870.0,118860.0,1.88374453]
[1752829978327,1e-08,118870.0,118860.0,1.9054096]
[1752829980430,1e-08,118870.0,118860.0,1.9107756]
[1752829981039,1e-08,118870.0,118860.0,1.93189795]
[1752829981255,1e-08,118870.0,118860.0,2.17414285]
[1752829981936,1e-08,118870.0,118860.0,2.1530205]
[1752829982554,1e-08,118870.0,118860.0,2.1560205]
[1752829983014,1e-08,118870.0,118860.0,2.1530205]
[1752829983212,1e-08,118870.0,118860.0,2.1580205]
[1752829983429,1e-08,118870.0,118860.0,2.6441205]
[1752829983636,1e-08,118870.0,118860.0,1.64439489]
[1752829983845,1e-08,118870.0,118860.0,2.57241543]
[1752829984532,1e-08,118870.0,118860.0,2.57041543]
[1752829984991,1e-08,118870.0,118860.0,2.43821543]
[1752829985218,1e-08,118870.0,118860.0,2.32813053]
[1752829985435,1e-08,118870.0,118860.0,2.37813053]
[1752829986084,1e-08,118870.0,118860.0,2.38113053]
[1752829986293,1e-08,118870.0,118860.0,2.24897053]
[1752829986509,1e-08,118870.0,118860.0,2.37813053]
[1752829986935,1e-08,118870.0,118860.0,2.38213053]
[1752829988192,1e-08,118870.0,118860.0,2.43213053]
[1752829988402,1e-08,118870.0,118860.0,2.45391465]
[1752829988616,1e-08,118870.0,118860.0,2.40391465]
[1752829988843,1e-08,118870.0,118860.0,2.45391465]
[1752829989366,1e-08,118870.0,118860.0,2.46664576]
[1752829990451,1e-08,118870.0,118860.0,2.45391465]
[1752829992728,1e-08,118870.0,118860.0,2.43213053]
[1752829992934,1e-08,118870.0,118860.0,2.45297177]
[1752829993217,1e-08,118870.0,118860.0,2.7557779]
[1752829993748,1e-08,118890.0,118880.0,0.64767154]
[1752829993947,1e-08,118890.0,118880.0,2.59942409]
[1752829993948,0.00015023,118890.0,118880.0,2.59942409]
[1752829994431,1e-08,118890.0,118880.0,2.14193382]
[1752829995068,1e-08,118890.0,118880.0,2.60594409]
[1752829995277,1e-08,118900.0,118890.0,0.58345527]
[1752829995484,1e-08,118900.0,118890.0,2.36365571]
[1752829995714,1e-08,118900.0,118890.0,2.36677571]
[1752829996699,1e-08,118900.0,118890.0,2.23465571]
[1752829997066,1e-08,118900.0,118890.0,2.03289155]
[1752829997227,1e-08,118900.0,118890.0,2.08689155]
[1752829997426,1e-08,118900.0,118890.0,2.09001155]
[1752829997930,1e-08,118900.0,118890.0,2.09201155]
[1752829998131,1e-08,118900.0,118890.0,2.12471155]
[1752829998338,1e-08,118900.0,118890.0,2.15591155]
[1752829998545,1e-08,118900.0,118890.0,2.61992182]
[1752829999049,1e-08,118900.0,118890.0,2.37947571]
[1752829999258,0.04402917,118940.0,118890.0,2.37947571]
[1752829999259,0.12065124,118950.0,118930.0,0.1933902]
[1752829999462,0.12065124,118950.0,118940.0,0.54952055]
[1752829999674,0.12115208,118950.0,118940.0,0.54952055]
[1752829999881,0.12321208,118950.0,118940.0,0.57511531]
[1752830000298,0.12321208,118950.0,118940.0,0.11110504]
[1752830001362,0.12741208,118950.0,118940.0,0.11110504]
[1752830001818,0.12641208,118950.0,118940.0,0.11110504]
[1752830002257,0.18861208,118950.0,118940.0,0.11110504]
[1752830002693,0.19061208,118950.0,118940.0,0.11110504]
[1752830005775,0.19061208,118950.0,118940.0,0.57511531]
[1752830006409,0.19061208,118950.0,118940.0,0.62452933]
[1752830006623,0.19361208,118950.0,118940.0,0.62452933]
[1752830006832,0.19361208,118950.0,118940.0,0.57511531]
[1752830007045,0.32569208,118950.0,118940.0,0.57511531]
[1752830007276,0.32969208,118950.0,118940.0,0.57511531]
[1752830007931,0.32969208,118950.0,118940.0,0.11110504]
[1752830011424,0.32969208,118950.0,118940.0,0.08551028]
[1752830012321,0.32969208,118950.0,118940.0,0.09551028]
[1752830013358,0.32769208,118950.0,118940.0,0.09551028]
[1752830018048,0.01476084,118950.0,118940.0,1.1786541]
[1752830018259,0.36355171,118950.0,118940.0,1.170247]
[1752830018472,0.39355171,118950.0,118940.0,1.170247]
[1752830018682,0.40195853,118950.0,118940.0,1.27987276]
[1752830018917,0.41036542,118950.0,118940.0,1.28828007]
[1752830019340,0.41036542,118950.0,118940.0,1.29668731]
[1752830019540,0.27832542,118950.0,118940.0,1.29668731]
[1752830019764,0.41036542,118950.0,118940.0,1.29668731]
[1752830020031,0.41036542,118950.0,118940.0,1.38244693]
[1752830020261,0.27832542,118950.0,118940.0,1.29668731]
[1752830020462,0.22537384,118950.0,118940.0,1.30509441]
[1752830020683,0.10178059,118950.0,118940.0,1.30509441]
[1752830020912,0.08496723,118950.0,118940.0,1.30509441]
[1752830021131,0.20378052,118950.0,118940.0,1.39085403]
[1752830021348,0.06337377,118950.0,118940.0,1.39085403]
[1752830021554,0.19537377,118950.0,118940.0,1.39085403]
[1752830021758,0.23598052,118950.0,118940.0,1.39085403]
[1752830022348,0.07178052,118950.0,118940.0,1.39085403]
[1752830022528,0.20378052,118950.0,118940.0,1.39085403]
[1752830022738,0.05496723,118950.0,118940.0,1.39085403]
[1752830022918,0.14356084,118950.0,118940.0,0.92896376]
[1752830023127,0.16037362,118950.0,118940.0,1.39593403]
[1752830023328,0.1603737,118950.0,118940.0,1.39593403]
[1752830023534,0.15196716,118950.0,118940.0,1.39593403]
[1752830023769,0.1687803,118950.0,118940.0,0.93192376]
[1752830023954,0.16037362,118950.0,118940.0,1.31017441]
[1752830024156,0.14990716,118950.0,118940.0,1.31017441]
[1752830024358,0.14990716,118950.0,118940.0,1.34127441]
[1752830024576,0.00950084,118950.0,118940.0,1.31017441]
[1752830024776,0.00950084,118950.0,118940.0,1.42703403]
[1752830024976,0.14150084,118950.0,118940.0,1.42703403]
[1752830025432,0.14790709,118950.0,118940.0,1.42703403]
[1752830025641,0.14890709,118950.0,118940.0,1.42703403]
[1752830025827,0.14190709,118950.0,118940.0,1.23164879]
[1752830026067,0.14490709,118950.0,118940.0,1.23164879]
[1752830026508,0.16171995,118950.0,118940.0,1.23164879]
[1752830026899,0.15331341,118950.0,118940.0,1.23164879]
[1752830027082,0.14490709,118950.0,118940.0,1.23164879]
[1752830027341,0.14490709,118950.0,118940.0,1.26414879]
[1752830027647,0.15331341,118950.0,118940.0,1.26414879]
[1752830027754,0.13650084,118950.0,118940.0,1.26414879]
[1752830028200,0.14490716,118950.0,118940.0,1.26414879]
[1752830028400,0.13650084,118950.0,118940.0,1.26414879]
[1752830028604,0.00450084,118950.0,118940.0,1.26414879]
[1752830028815,0.13646084,118950.0,118940.0,1.26414879]
[1752830030654,0.00450084,118950.0,118940.0,1.26414879]
[1752830030861,0.13646084,118950.0,118940.0,1.26414879]
[1752830032381,0.00450084,118950.0,118940.0,1.26414879]
[1752830032601,0.13646084,118950.0,118940.0,1.26414879]
[1752830033236,0.13646084,118950.0,118940.0,1.5046]
[1752830033667,0.00450084,118950.0,118940.0,1.5046]
[1752830033878,0.13646084,118950.0,118940.0,1.5046]
[1752830036952,0.13646084,118950.0,118940.0,1.04058973]
[1752830037153,0.13646084,118950.0,118940.0,1.5046]
[1752830037362,0.13646084,118950.0,118940.0,1.26414879]
[1752830037939,0.13646084,118950.0,118940.0,1.23164879]
[1752830038286,0.13646084,118950.0,118940.0,1.26384879]
[1752830039911,0.13646084,118950.0,118940.0,0.79983852]
[1752830040157,0.13646084,118950.0,118940.0,1.26384879]
[1752830041903,0.13646084,118950.0,118940.0,0.79983852]
[1752830042111,0.00450084,118950.0,118940.0,0.79983852]
[1752830042318,0.13849084,118950.0,118940.0,0.62259725]
[1752830042521,0.21485716,118950.0,118940.0,1.29742105]
[1752830042678,0.20645084,118950.0,118940.0,1.29742105]
[1752830042894,0.20645084,118950.0,118940.0,1.30249105]
[1752830042895,0.13849084,118950.0,118940.0,1.30249105]
[1752830043123,0.13642084,118950.0,118940.0,1.38825067]
[1752830043763,0.14482716,118950.0,118940.0,1.38825067]
[1752830044197,0.14482709,118950.0,118940.0,1.38825067]
[1752830044422,0.13642084,118950.0,118940.0,1.38825067]
[1752830044627,0.14482716,118950.0,118940.0,1.38825067]
[1752830045057,0.13849084,118950.0,118940.0,1.38825067]
[1752830045965,0.13849084,118950.0,118940.0,0.9242404]
[1752830046185,0.13849084,118950.0,118940.0,1.38825067]
[1752830047014,0.72329227,118950.0,118940.0,0.20611912]
[1752830047456,0.85521227,118950.0,118940.0,0.00723]
[1752830047676,0.24978225,118930.0,118920.0,0.19911912]
[1752830047922,0.85071252,118930.0,118920.0,0.2846294]
[1752830048173,0.93647214,118930.0,118920.0,0.19911912]
[1752830048424,0.34054187,118930.0,118920.0,0.19911912]
[1752830048669,0.9447161,118930.0,118920.0,0.003]
[1752830050289,0.86495648,118930.0,118920.0,0.003]
[1752830050511,0.86695648,118930.0,118920.0,0.003]
[1752830055079,0.89231072,118930.0,118920.0,0.003]
[1752830058928,0.86695648,118930.0,118920.0,0.003]
[1752830065102,0.40294621,118930.0,118920.0,0.003]
[1752830065329,0.86695648,118930.0,118920.0,0.003]
[1752830067032,0.9527161,118930.0,118920.0,0.003]
[1752830067455,0.86695648,118930.0,118920.0,0.003]
[1752830069179,0.73503648,118930.0,118920.0,0.003]
[1752830069391,0.36534621,118930.0,118920.0,0.00803]
[1752830069648,0.32688225,118930.0,118920.0,0.00803]
[1752830069879,0.32688225,118930.0,118920.0,0.00498]
[1752830070107,0.82359252,118930.0,118920.0,0.003]
[1752830070751,0.38988225,118930.0,118920.0,0.003]
[1752830070969,0.85691252,118930.0,118920.0,0.003]
[1752830071189,0.94267214,118930.0,118920.0,0.003]
[1752830071638,0.95111755,118930.0,118920.0,0.003]
[1752830073427,0.86535793,118930.0,118920.0,0.003]
[1752830073682,0.40134766,118930.0,118920.0,0.003]
[1752830073940,0.86535793,118930.0,118920.0,0.003]
[1752830075339,0.73343793,118930.0,118920.0,0.003]
[1752830075546,0.40134766,118930.0,118920.0,0.003]
[1752830075761,0.86535793,118930.0,118920.0,0.003]
[1752830075967,0.73343793,118930.0,118920.0,0.003]
[1752830076397,0.83199793,118930.0,118920.0,0.003]
[1752830076621,0.36798766,118930.0,118920.0,0.003]
[1752830076843,0.83199793,118930.0,118920.0,0.003]
[1752830077066,0.19496225,118930.0,118920.0,0.09049028]
[1752830077274,0.32486225,118930.0,118920.0,0.2113999]
[1752830077502,0.32486225,118930.0,118920.0,0.7985397]
[1752830077717,0.32486225,118930.0,118920.0,1.14694843]
[1752830077929,0.32486225,118930.0,118920.0,0.67452943]
[1752830078366,0.3164543,118930.0,118920.0,0.69963103]
[1752830078566,0.3164543,118930.0,118920.0,0.70803997]
[1752830079065,0.37867202,118930.0,118920.0,0.45559174]
[1752830079287,0.84268229,118930.0,118920.0,0.45361174]